Cogmind - Beta 15 @@@ ROGUE MODE // 2025.06.08 @ 15:57:35 // Winter2019/RPGLIKE Player: Jack Result: Destroyed self Performance ------------- Evolutions (2) 1000 Regions Visited (7) 1400 Robots Destroyed (23) 115 Value Destroyed (527) 527 Prototype IDs (23) 460 Alien Tech Used (0) 0 Bonus (40) 40 TOTAL SCORE: 3542 Bonus ------- Aligned with FarCom 300 Friendly Fire -260 Cogmind --------- Core Integrity 0/600 Matter 260/300 Energy 100/100 System Corruption 0% Temperature Cool (16) Movement Core (50) Location -8/Materials Parts ------- > --- POWER (1) -------- (None) > --- PROPULSION (2) --- (None) > --- UTILITY (1) ------ (None) > --- WEAPON (4) ------- (None) > --- INVENTORY (2) ---- Latent Energy Streamer Peak State ------------ > --- POWER ------------ Ion Engine > --- PROPULSION ------- Flight Unit Flight Unit > --- UTILITY ---------- (None) > --- WEAPON ----------- YOLO Cannon Assault Rifle Light Assault Rifle > --- INVENTORY -------- Latent Energy Streamer [Rating: 26] Favorites ----------- Power Ion Engine Engine Ion Engine Propulsion Flight Unit Flight Unit Flight Unit Utility Light Armor Plating Protection Light Armor Plating Weapon Light Assault Rifle Energy Gun Small Laser Energy Cannon YOLO Cannon Ballistic Gun Light Assault Rifle Build | -11 -10 -10 -9 -9 -9 -8 -8 ------- Run | Yrd Mat Min Mat Min Exi Min Mat Slots Evolved 4 | 4 . . . . . . . Power . | . . . . . . . . Propulsion 1 | 1 . . . . . . . Utility . | . . . . . . . . Weapon 3 | 3 . . . . . . . Parts Attached 14 | 3 5 . 1 2 1 2 . Power 1 | . 1 . . . . . . Engine 1 | . 1 . . . . . . Core . | . . . . . . . . Reactor . | . . . . . . . . Propulsion 5 | . 2 . . 1 . 2 . Treads . | . . . . . . . . Leg . | . . . . . . . . Wheel . | . . . . . . . . Hover . | . . . . . . . . Flight 5 | . 2 . . 1 . 2 . Utility 1 | . . . 1 . . . . Device . | . . . . . . . . Storage . | . . . . . . . . Processor . | . . . . . . . . Hackware . | . . . . . . . . Protection 1 | . . . 1 . . . . Artifact . | . . . . . . . . Weapon 7 | 3 2 . . 1 1 . . Energy Gun 2 | 2 . . . . . . . Energy Cannon 1 | . . . . . 1 . . Ballistic Gun 4 | 1 2 . . 1 . . . Ballistic Cannon . | . . . . . . . . Launcher . | . . . . . . . . Special Weapon . | . . . . . . . . Impact Weapon . | . . . . . . . . Slashing Weapon . | . . . . . . . . Piercing Weapon . | . . . . . . . . Special Melee Weapon . | . . . . . . . . Unidentified Prototypes . | . . . . . . . . Parts Lost 5 | . . . . 1 . . 4 Power 1 | . . . . . . . 1 Propulsion 2 | . . . . . . . 2 Utility 1 | . . . . 1 . . . Weapon 1 | . . . . . . . 1 Highest Loss Streak 4 | . . . . 1 . . 4 To Critical Strikes . | . . . . . . . . Average Backups . | . . . . . . 1 1 Power . | . . . . . . . . Propulsion . | . . . . . . . . Utility . | . . . . . . . . Weapon . | . . . . . . 1 1 Tool/Special . | . . . . . . . . Unused Backups 1 | . . . . . . . 1 Power . | . . . . . . . . Propulsion . | . . . . . . . . Utility . | . . . . . . . . Weapon 1 | . . . . . . . 1 Tool/Special . | . . . . . . . . Average Slot Usage (%) 72 | . 48 87 88 96 78 55 50 Engine 10 | . . 12 12 12 12 12 12 Flight 22 | . 3 25 25 25 25 25 25 Protection 1 | . . . 1 9 . . . Energy Gun 5 | . 22 12 12 1 . . . Energy Cannon 4 | . . . . . 7 12 12 Ballistic Gun 26 | . 21 37 37 48 33 5 . Peak Build Rating 26 | 3 7 7 8 8 26 26 24 Average Rating 13 | 2 3 7 7 7 20 24 24 On Entrance 10 | . 3 7 7 8 7 26 24 Naked Turns . | . . . . . . . . Heaviest Build 26 | 4 10 10 13 13 26 26 23 Greatest Support 23 | 8 13 13 13 13 13 18 23 Greatest Overweight (x) 1 | . . . . . 1 1 . Average Overweight (x) . | . . . . . . 1 . Largest Inventory Capacity 2 | . . . . . 2 2 2 Average Capacity . | . . . . . 1 2 2 Most Carried 2 | . . . . . 2 2 1 Average Carried . | . . . . . . 1 1 Final Capacity 2 | . . . . . 2 2 2 Final Carried 1 | . . . . . 1 1 1 Class Distribution -------------------- 34% | Gunner 25% | Hacker-Mutant 20% | Scavenger-Gunner 14% | Hacker-Gunner 4% | Hacker-Skirmisher Dominant Class ---------------- Gunner | -10/Materials Gunner | -10/Mines Gunner | -9/Materials Scavenger-Gunner | -9/Mines Hacker-Gunner | -9/Exiles Hacker-Mutant | -8/Mines Hacker-Mutant | -8/Materials Resources | -11 -10 -10 -9 -9 -9 -8 -8 ----------- Run | Yrd Mat Min Mat Min Exi Min Mat Matter Collected 527 | 183 138 40 40 45 . 81 . Remotely . | . . . . . . . . Salvage Created 824 | . 253 86 145 164 . 36 140 Parts 47 | . 15 4 3 10 . 2 13 Haulers Intercepted . | . . . . . . . . Recyclers Shooed 1 | . 1 . . . . . . Parts Field Recycled . | . . . . . . . . Retrieved Matter . | . . . . . . . . Parts Self-Destructed . | . . . . . . . . Prevented . | . . . . . . . . Kills | -11 -10 -10 -9 -9 -9 -8 -8 ------- Run | Yrd Mat Min Mat Min Exi Min Mat Combat Hostiles Destroyed 18 | . 3 . 2 6 . 3 4 Guns 14 | . 3 . 2 6 . 3 . Cannons 3 | . . . . . . . 3 Classes Destroyed 8 | . 4 1 1 1 . . 1 Builder 1 | . 1 . . . . . . Recycler 2 | . 2 . . . . . . Watcher 1 | . 1 . . . . . . Swarmer 9 | . 3 . . 3 . 3 . Grunt 2 | . . . . 2 . . . Brawler 1 | . . . . 1 . . . Sentry 5 | . . . 2 . . . 3 Hunter 1 | . . . . . . . 1 Thug 1 | . . 1 . . . . . Best Kill Streak 7 | . 7 . 1 4 . 3 3 Combat Bots Only 4 | . 3 . 1 4 . 3 3 Max Kills in Single Turn 2 | . 1 1 1 2 . 1 1 Gunslinging . | . . . . . . . . Exploded . | . . . . . . . . Melee . | . . . . . . . . Uniques/NPCs Destroyed . | . . . . . . . . Combat | -11 -10 -10 -9 -9 -9 -8 -8 -------- Run | Yrd Mat Min Mat Min Exi Min Mat Hostile Shots Fired 103 | . 8 . 18 30 . 23 24 Missed 35 | . 2 . 7 10 . 6 10 Hits 68 | . 6 . 11 20 . 17 14 Melee 3 | . . . . 3 . . . Projectile 65 | . 6 . 11 17 . 17 14 AOE 1 | . . . . 1 . . . Critical Strikes 1 | . . . . 1 . . . Damage Taken 954 | . 46 . 166 286 . 130 326 Core 772 | . 38 . 133 201 . 102 298 Absorbed by Shields . | . . . . . . . . Redirected to Core 505 | . 25 . 119 190 . 77 94 Core Remaining (%) 81 | 100 . 93 . . . 50 . Volleys Fired 54 | . 7 6 6 13 . 10 12 Largest 4 | . 4 4 4 4 . 2 1 Hottest 120 | . 120 100 100 100 . 100 100 Shots Fired 158 | . 28 24 24 52 . 19 11 Gun 146 | . 28 24 24 52 . 18 . Cannon 12 | . . . . . . 1 11 Launcher . | . . . . . . . . Special . | . . . . . . . . Kinetic 120 | . 17 18 18 49 . 18 . Thermal 38 | . 11 6 6 3 . 1 11 Explosive . | . . . . . . . . Electromagnetic . | . . . . . . . . Robot Hit Streak 17 | . 12 15 14 17 . 2 4 Robot Miss Streak 4 | . 2 2 1 4 . 3 2 Penetration Max . | . . . . . . . . Secondary Targets 4 | . . . . 3 . 1 . Max Gunslinging Chain 1 | . . . . 1 . 1 . Shots Hit Robots 100 | . 13 13 22 38 . 9 5 Core Hits 36 | . 10 5 5 10 . 3 3 Critical Kills 2 | . . . . 1 . . 1 Critical Parts Destroyed 3 | . . . 1 2 . . . Critical Strikes 5 | . . . 1 3 . . 1 Meltdown 1 | . . . . . . . 1 Destroy 4 | . . . 1 3 . . . Melee Attacks . | . . . . . . . . Impact . | . . . . . . . . Slashing . | . . . . . . . . Piercing . | . . . . . . . . Sneak Attacks . | . . . . . . . . Combat Hostiles . | . . . . . . . . Follow-up Attacks . | . . . . . . . . Damage Inflicted 1838 | . 176 160 229 366 . 113 794 Guns 1044 | . 176 160 229 366 . 113 . Cannons 601 | . . . . . . . 601 Explosions 193 | . . . . . . . 193 Melee . | . . . . . . . . Ramming . | . . . . . . . . Kinetic 815 | . 77 106 174 345 . 113 . Thermal 1023 | . 99 54 55 21 . . 794 Explosive . | . . . . . . . . Electromagnetic . | . . . . . . . . Impact . | . . . . . . . . Slashing . | . . . . . . . . Piercing . | . . . . . . . . Highest Corruption . | . . . . . . . . Average Corruption . | . . . . . . . . Corruption Purged . | . . . . . . . . Corruption Blocked . | . . . . . . . . Overload Shots . | . . . . . . . . Overflow Damage 18 | . . . . . . . 18 Projectiles . | . . . . . . . . Explosions 18 | . . . . . . . 18 Melee . | . . . . . . . . Knockbacks . | . . . . . . . . Impact . | . . . . . . . . Kinetic . | . . . . . . . . Secondary . | . . . . . . . . Self-Inflicted Damage 147 | . . . . . . . 147 Shots 2 | . . . . . . . 2 Rammed . | . . . . . . . . Targets Rammed . | . . . . . . . . Kicked . | . . . . . . . . Crushed . | . . . . . . . . Highest Temperature 209 | . 90 209 47 54 . . 19 Average Temperature 48 | . 44 98 21 23 . . 8 Received Heat Transfer 135 | . . . 45 54 . . 36 Siege Activations . | . . . . . . . . Martial Activations . | . . . . . . . . Shielding Activations . | . . . . . . . . Robots Disrupted . | . . . . . . . . Combat Hostiles . | . . . . . . . . Robots Corrupted . | . . . . . . . . Combat Hostiles . | . . . . . . . . Parts Fried . | . . . . . . . . Impact Corruptions . | . . . . . . . . Robots Melted 1 | . . . . . . . 1 Combat Hostiles 1 | . . . . . . . 1 Parts Melted 3 | . 1 . . . . . 2 Heat Transferred 1165 | . 225 125 125 50 . . 640 Parts Sabotaged . | . . . . . . . . Parts Stolen . | . . . . . . . . Parts Stripped . | . . . . . . . . Power Chain Reactions . | . . . . . . . . Alert | -11 -10 -10 -9 -9 -9 -8 -8 ------- Run | Yrd Mat Min Mat Min Exi Min Mat Maximum Alert Level 1 | . . . . . . . 1 Low Security (%) 97 | 100 100 100 100 100 . 100 81 Level 1 2 | . . . . . . . 18 Level 2 . | . . . . . . . . Level 3 . | . . . . . . . . Level 4 . | . . . . . . . . Level 5 . | . . . . . . . . High Security . | . . . . . . . . Max Security . | . . . . . . . . Peak Influence 236 | . 79 24 55 96 . 69 236 Initial 24 | . . 24 . 21 . . . Average 38 | . 21 6 18 62 . 29 114 Influence Increases 679 | . 94 . 75 155 . 79 276 Destroy 0b10 Robot/C 360 | . 60 . 40 120 . 60 80 Destroy 0b10 Robot/NC 20 | . 20 . . . . . . Destroy Leader 102 | . 12 . 20 20 . 10 40 Disable Machine 30 | . . . . . . . 30 Destroy Structure 137 | . 2 . . . . 9 126 Lose Combat Pursuer 30 | . . . 15 15 . . . Influence Decreases 483 | . 30 64 20 114 96 79 80 Entered New Map 170 | . . 40 . 34 96 . . Time Decay 263 | . 30 24 20 70 . 79 40 Lost Part 50 | . . . . 10 . . 40 Squads Dispatched 4 | . . . 1 . . . 3 Investigation 2 | . . . . . . . 2 Extermination . | . . . . . . . . Reinforcement 2 | . . . 1 . . . 1 Assault . | . . . . . . . . Garrison . | . . . . . . . . Intercept . | . . . . . . . . Searches Triggered . | . . . . . . . . Construction Impeded . | . . . . . . . . Haulers Reinforced . | . . . . . . . . Active Scanning Responses . | . . . . . . . . Cargo Convoy Interrupts . | . . . . . . . . Stealth | -11 -10 -10 -9 -9 -9 -8 -8 --------- Run | Yrd Mat Min Mat Min Exi Min Mat Distress Signals 1 | . . . 1 . . . . Communications Jammed . | . . . . . . . . Distress Signals . | . . . . . . . . Times Spotted 37 | . 5 . 5 10 . 2 15 Peak Tracking Total 11 | . 4 . 4 6 . 2 11 Tactical Retreats 3 | . . . 1 2 . . . Traps | -11 -10 -10 -9 -9 -9 -8 -8 ------- Run | Yrd Mat Min Mat Min Exi Min Mat Traps Triggered 3 | . 1 . . . . . 2 Indirectly . | . . . . . . . . Trap Hack Attempts . | . . . . . . . . Triggered . | . . . . . . . . Disarmed . | . . . . . . . . Reprogrammed . | . . . . . . . . Reused . | . . . . . . . . Traps Extracted . | . . . . . . . . Installed . | . . . . . . . . Triggered . | . . . . . . . . Machines | -11 -10 -10 -9 -9 -9 -8 -8 ---------- Run | Yrd Mat Min Mat Min Exi Min Mat Machines Disabled 2 | . . . . . . . 2 Max in Single Turn 1 | . . . . . . . 1 Machines Repaired . | . . . . . . . . Machines Dismantled . | . . . . . . . . Machines Sabotaged . | . . . . . . . . Overloaded Fab Kills . | . . . . . . . . Hacking | -11 -10 -10 -9 -9 -9 -8 -8 --------- Run | Yrd Mat Min Mat Min Exi Min Mat Machines Accessed 4 | . . 1 2 . 1 . . Terminals 1 | . . . 1 . . . . Fabricators . | . . . . . . . . Repair Stations 1 | . . . 1 . . . . Recycling Units . | . . . . . . . . Scanalyzers . | . . . . . . . . Garrison Access . | . . . . . . . . Total Hacks 8 | . . 1 6 . 1 . . Successful 2 | . . 1 . . 1 . . Failed 6 | . . . 6 . . . . Catastrophic . | . . . . . . . . Database Lockouts . | . . . . . . . . Manual 4 | . . . 3 . 1 . . Terminals 3 | . . . 3 . . . . Fabricators . | . . . . . . . . Repair Stations 3 | . . . 3 . . . . Recycling Units . | . . . . . . . . Scanalyzers . | . . . . . . . . Garrison Access . | . . . . . . . . Terminal Hacks 2 | . . 1 . . 1 . . Open Door 1 | . . 1 . . . . . Proto ID Catalog 1 | . . . . . 1 . . Fabricator Hacks . | . . . . . . . . Repair Station Hacks . | . . . . . . . . Recycling Unit Hacks . | . . . . . . . . Scanalyzer . | . . . . . . . . Garrison Access Hacks . | . . . . . . . . Unauthorized Hacks . | . . . . . . . . Terminals . | . . . . . . . . Fabricators . | . . . . . . . . Repair Stations . | . . . . . . . . Recycling Units . | . . . . . . . . Scanalyzers . | . . . . . . . . Garrison Access . | . . . . . . . . Data Cores Recovered . | . . . . . . . . Used . | . . . . . . . . Hacking Detections 2 | . . . 2 . . . . Full Trace Events 2 | . . . 2 . . . . Feedback Events . | . . . . . . . . Feedback Blocked . | . . . . . . . . Robot Schematics Acquired . | . . . . . . . . Robots Built . | . . . . . . . . Authchips . | . . . . . . . . Time . | . . . . . . . . Total Robot Build Rating . | . . . . . . . . Part Schematics Acquired . | . . . . . . . . Parts Built . | . . . . . . . . Authchips . | . . . . . . . . Time . | . . . . . . . . Total Part Build Rating . | . . . . . . . . Parts Repaired . | . . . . . . . . Time . | . . . . . . . . Parts Recycled . | . . . . . . . . Recycled Matter . | . . . . . . . . Retrieved Matter . | . . . . . . . . Retrieved Components . | . . . . . . . . Parts Scanalyzed . | . . . . . . . . Part Schematics Acquired . | . . . . . . . . Parts Damaged . | . . . . . . . . Bothacking | -11 -10 -10 -9 -9 -9 -8 -8 ------------ Run | Yrd Mat Min Mat Min Exi Min Mat Used RIF Installer . | . . . . . . . . Robots Hacked . | . . . . . . . . Non-combat . | . . . . . . . . Combat . | . . . . . . . . Robot Hacks Applied . | . . . . . . . . Relay Couplers Released . | . . . . . . . . Fabnet Peak Effective % . | . . . . . . . . Robots Rewired . | . . . . . . . . Allies Hacked . | . . . . . . . . Hacks Repelled . | . . . . . . . . Allies | -11 -10 -10 -9 -9 -9 -8 -8 -------- Run | Yrd Mat Min Mat Min Exi Min Mat Total Allies . | . . . . . . . . Largest Group . | . . . . . . . . Highest-Rated Group . | . . . . . . . . Highest-Rated Ally . | . . . . . . . . Total Orders . | . . . . . . . . Ally Attacks . | . . . . . . . . Total Damage . | . . . . . . . . Kills . | . . . . . . . . Allies Corrupted . | . . . . . . . . Allies Melted . | . . . . . . . . Intel | -11 -10 -10 -9 -9 -9 -8 -8 ------- Run | Yrd Mat Min Mat Min Exi Min Mat Active Infowar (turns) . | . . . . . . . . Robot Analysis Total . | . . . . . . . . Derelict Logs Recovered 2 | . . 2 . . . . . Drone Launches . | . . . . . . . . Drone Recoveries . | . . . . . . . . Exploration | -11 -10 -10 -9 -9 -9 -8 -8 ------------- Run | Yrd Mat Min Mat Min Exi Min Mat Turns Passed 937 | 20 123 123 74 158 161 193 85 Spaces Moved 1284 | 31 185 279 146 185 225 133 100 Core 179 | 31 148 . . . . . . Treads . | . . . . . . . . Legs . | . . . . . . . . Wheels . | . . . . . . . . Hover . | . . . . . . . . Flight 1105 | . 37 279 146 185 225 133 100 Fastest Speed 37 | 50 37 37 37 37 37 117 37 Average Speed 52 | 50 47 37 37 37 70 117 37 Slowest Speed 117 | 50 50 37 37 37 117 117 37 Overloaded Moves . | . . . . . . . . Propulsion Burnouts . | . . . . . . . . Robots Hopped 2 | . . 1 1 . . . . Potential Cave-ins . | . . . . . . . . Cave-ins Triggered . | . . . . . . . . Exploration Rate (%) 37 | 4 40 80 16 33 61 43 24 Regions Visited 7 Branch Regions 4 Pre-discovered Areas 1 | . . 1 . . . . . Known Exits Taken . | . . . . . . . . Unknown Exits Taken 7 | 1 1 1 1 1 1 1 . Scrap Searched 2 | . . 1 . . . 1 . Spaces Dug . | . . . . . . . . Terrain Destroyed 172 | . . . . . . 21 151 Melee . | . . . . . . . . Projectile 6 | . . . . . . 1 5 AOE 166 | . . . . . . 20 146 Terrain Rammed . | . . . . . . . . Walls Destroyed . | . . . . . . . . Machines Disabled . | . . . . . . . . Actions | -11 -10 -10 -9 -9 -9 -8 -8 --------- Run | Yrd Mat Min Mat Min Exi Min Mat Total 1415 | 33 201 284 151 249 229 152 116 Wait 49 | . 2 1 . 38 . 4 4 Move 1273 | 30 184 276 143 184 224 132 100 Hop 2 | . . 1 1 . . . . Pick Up 2 | . . . . . 2 . . Fast Attach 12 | 3 7 . 1 1 . . . Attach 1 | . . . . . 1 . . Detach . | . . . . . . . . Swap 4 | . . . . 2 . 2 . Drop 10 | . 1 . . 3 2 4 . Fire 54 | . 7 6 6 13 . 10 12 Melee . | . . . . . . . . Ram . | . . . . . . . . Kick . | . . . . . . . . Crush . | . . . . . . . . Escape Stasis . | . . . . . . . . Rewire . | . . . . . . . . Trap . | . . . . . . . . Miscellaneous 8 | . . . . 8 . . . Route ------- -11/Scrapyard -10/Materials -10/Mines -9/Materials -9/Mines -9/Exiles -8/Mines -8/Materials History --------- Turn | Location | Event 2 | -11/Scrapyard | Upgraded with Propulsion slot (x1) 2 | -11/Scrapyard | Upgraded with Weapon slot (x3) 6 | -11/Scrapyard | Discovered new exit (range 15) 21 | -11/Scrapyard | Entered Materials 137 | -10/Materials | Discovered new exit (range 12) 144 | -10/Materials | Entered Mines 146 | -10/Mines | Met a Derelict bent on vengeance 155 | -10/Mines | Received a Rocket Launcher from a helpful Derelict 197 | -10/Mines | Learned location of Zion (-6) 198 | -10/Mines | Learned Materials terminal intel 210 | -10/Mines | Found the Drone Emporium 252 | -10/Mines | Found a hidden stash of uninstalled traps 261 | -10/Mines | Discovered new exit (range 12) 267 | -10/Mines | Entered Materials 268 | -9/Materials | Loaded intel: 12 terminal locations 269 | -9/Materials | Reached level 2 303 | -9/Materials | Discovered new exit (range 14) 304 | -9/Materials | Build established: Gunner 341 | -9/Materials | Entered Mines 343 | -9/Mines | Reached level 3 370 | -9/Mines | Assembled infested the area 477 | -9/Mines | Core integrity fell below 50% 497 | -9/Mines | Deemed a non-threat by the Exiles lab entrance 497 | -9/Mines | Discovered new exit (range 5) 499 | -9/Mines | Entered Exiles 509 | -9/Exiles | Met 8R-AWN 515 | -9/Exiles | Met EX-HEX 526 | -9/Exiles | Met EX-BIN 531 | -9/Exiles | Aligned with FarCom system 531 | -9/Exiles | Given EX-Vault access code 540 | -9/Exiles | Opened EX-Vault 542 | -9/Exiles | Found YOLO Cannon 551 | -9/Exiles | Found Latent Energy Streamer 573 | -9/Exiles | Warned to stay clear of 0b10 Research branches 608 | -9/Exiles | Met EX-DEC 651 | -9/Exiles | Discovered new exit (range 10) 660 | -9/Exiles | Stole two prototypes: YOLO Cannon, Latent Energy Streamer 660 | -9/Exiles | Entered Mines 662 | -8/Mines | Reached level 4 832 | -8/Mines | Discovered new exit (range 16) 853 | -8/Mines | Entered Materials 855 | -8/Materials | Reached level 5 889 | -8/Materials | Core integrity fell below 50% 938 | -8/Materials | Core integrity fell below 20% 938 | -8/Materials | YOLO Cannon suddenly exploded 938 | -8/Materials | Destroyed self Last Messages --------------- U-05 Engineer builds a Wall. U-05 Engineer lays Concrete. U-05 Engineer builds a Wall. K-01 Serf collects debris. Heat Sink melted. Y-45 Defender destroyed. K-01 Serf collects debris. Triggered Alarm Trap. An alarm sounds. ALERT: Alarm triggered, dispatching investigation squad. Triggered Alarm Trap. An alarm sounds. ALERT: Alarm triggered, dispatching investigation squad. H-55 Commando destroyed. S-10 Pest destroyed. Penetrated by Slug. YOLO Cannon suddenly explodes. Flight Unit destroyed. Ion Engine destroyed. Core damaged (-48). Map ----- +----------------------------------------------------+ | ?????????????????????????????????? | | ?????????????????????????????????? | | ?????????????????????????????????? | | ?????????????????????????????????? | | ?????????????????????????????????? | | ?????????????????????????????????? | | ?????????????????????????????????? | | ?????????????????????????????????? | | ?????????????????????????????????? | | ?????????????????????????????????? | | ???????? ?????????????#?????????? | | ???????? ?????????????# ????????? | | ??????? ?????????????# ????????? | | ??????#k ?????????????# ?????### | | ??????# ?????????????# ?????# | | ??????# ????########## ??? ## | | ??????# ???"T" #] """ # | | ?????## ##?? # """ ?# | | ?????# #? # ?? | | ?????# " # """ """ # ??? | | ?????# "T + """"""""" # "Y"???? | | ?????# # """"" " #Y ""????? | | ?????# k # #? ????## | | ??????# #######;;;;;####+######" | | ??????# | | ??????# @ w [ | | ??????# * = | | ??????# ######;;;;;;;##########" | | ??????# #????##" = ######## | | ??????# #?????#"" " ## | | ??????# #?????##"R ## """ | | ??????# #??????#""" ## """ | | ??????# #??????#""" ## """ | | ??????+% #??????# ## ? | | ????? #hgs???????? ## ? | | ????? # s???????? #######? | | ???? ?#s g????????? #??????? | | ????#?# g ?????????########??????# | | ??????; ???????????????????????# | | ??????; ????????????????# # | | ??????? ????????????????# / | | ??????????????????????????# # | | ??????????????????????????# # | | ??????????????????????????# ?# | | ??????????????????????????#####??? | | ?????????????????????????????????? | | ?????????????????????????????????? | | ?????????????????????????????????? | | ?????????????????????????????????? | | ?????????????????????????????????? | +----------------------------------------------------+ Best States ------------- Heat Dissipation 37 Energy Generation 10 Energy Capacity 250 Matter Stores 300 Matter Capacity 300 Sight Range 16 Terrain Scan Density 10 Armor Coverage 150 Evasion (%) 62 Offensive Hacking 20 Item Schematics ----------------- None Robot Schematics ------------------ None Fabricated ------------ Nothing Repaired ---------- Nothing Alien Tech Used ----------------- None Achievements -------------- None Challenges ------------ None RPGLIKE | -11 -10 -10 -9 -9 -9 -8 -8 --------- Run | Yrd Mat Min Mat Min Exi Min Mat Levels Raised 4 | . . . 1 1 . 1 1 XP Earned 10300 | 3000 350 500 1800 1200 350 850 2250 XP Spent 7570 | 3000 . . 1320 . 1550 600 1100 Upgrades 15 | 5 . . 5 . 3 1 1 Propulsion Slot 1 | 1 . . . . . . . Weapon Slot 3 | 3 . . . . . . . Heat Dissipation 2 | . . . 2 . . . . Mass Support 3 | 1 . . . . . 1 1 Inventory Capacity 2 | . . . . . 2 . . Hack Attack % 4 | . . . 3 . 1 . . Protomatter Created 107 | . . . . 59 . 6 42 Integrity Restored 177 | . . . . 177 . . . Core 177 | . . . . 177 . . . Protomatter Decayed 7 | . . . . 7 . . . Game ------ Seed IntegratedGravmagAccelerator Manual? 0 Play Time 00:10:50 Cumulative 271.4 hours Start 2025.06.08 @ 15:48:01 End 2025.06.08 @ 15:57:35 Sessions 1 Manual Loads 0 Difficulty Rogue Special Mode Winter2019/RPGLIKE Game No. 272 Rogue 83 Adventurer 177 Explorer 12 Win Type - Total 65 Types 19/1/16/2/12/0/4/5/0/6 Lore% 55 Gallery% 54 Achievement% 71 Wizard Run 0 Options --------- Layout 0 ASCII 0 Keyboard 0 Movement Numpad Keybinds 0 Fullscreen 2 Font 12/Smallcaps Map View 83x54 Zoom Use 0% Tactical HUD 0 Map Filters NONE Filters NONE Steam 1 RUN: 0b4ee0e2-7665-4475-8fb4-f89486f4ee3e